bitfinex/quotes_SOLUSD_20241115
["timestamp","ask_amount","ask_price","bid_price","bid_amount"]
[1731663907057,7.34815273,212.91,212.85,4.82359]
[1731663907270,12.04475273,212.92,212.85,4.82359]
[1731663909049,12.04475273,212.92,212.85,12.17174273]
[1731663909676,7.34815273,212.92,212.85,12.17174273]
[1731663910191,7.34815273,212.93,212.85,12.17174273]
[1731663910352,7.34815273,212.92,212.85,7.47364273]
[1731663910673,7.34815273,212.9,212.85,0.12549]
[1731663910858,7.34815273,212.89,212.85,0.12549]
[1731663911053,7.34815273,212.9,212.83,7.34815273]
[1731663911449,7.34815273,212.89,212.82,7.34815273]
[1731663911669,7.34815273,212.9,212.83,7.34815273]
[1731663912271,86.9431,212.95,212.82,0.12549]
[1731663912272,12.04535273,212.89,212.82,0.12549]
[1731663912484,7.34815273,212.88,212.82,0.12549]
[1731663912669,12.04535273,212.89,212.82,7.47364273]
[1731663913277,4.6961,212.94,212.84,7.34815273]
[1731663913477,4.6961,212.94,212.85,7.34815273]
[1731663913478,7.34815273,212.92,212.85,7.34815273]
[1731663914065,4.6961,212.94,212.82,16.57109]
[1731663914066,7.34815273,212.91,212.84,7.34815273]
[1731663914266,4.6972,212.89,212.84,7.34815273]
[1731663916157,4.6972,212.89,212.83,7.34815273]
[1731663916767,7.34815273,212.89,212.83,7.34815273]
[1731663917277,7.34815273,212.89,212.82,19.22064273]
[1731663917970,7.34815273,212.93,212.83,20.0]
[1731663918162,12.04425273,212.94,212.87,7.34815273]
[1731663918364,4.6961,212.94,212.88,7.34815273]
[1731663918778,12.04425273,212.94,212.88,7.34815273]
[1731663921085,7.34815273,212.93,212.87,7.34815273]
[1731663921260,7.34815273,212.93,212.85,20.0]
[1731663921578,7.34815273,212.93,212.84,16.4442]
[1731663921579,7.34815273,212.93,212.87,7.34815273]
[1731663921782,7.34815273,212.93,212.86,7.34815273]
[1731663921975,7.34815273,212.93,212.85,20.0]
[1731663922176,7.34815273,212.93,212.86,12.04605273]
[1731663924484,4.6961,212.94,212.89,7.34815273]
[1731663924688,14.33494956,212.98,212.86,4.6979]
[1731663924689,4.6958,212.96,212.91,7.34815273]
[1731663924974,4.6958,212.96,212.86,16.4427]
[1731663924975,4.6954,212.98,212.93,7.34815273]
[1731663925699,17.789,213.0,212.96,7.34815273]
[1731663925700,4.6949,213.0,212.96,7.34815273]
[1731663926065,7.34815273,213.04,212.97,7.34815273]
[1731663926377,4.6945,213.02,212.97,7.34815273]
[1731663926577,4.6941,213.04,212.98,7.34815273]
[1731663926771,12.04225273,213.04,212.97,7.34815273]
[1731663927162,7.34815273,213.03,212.96,7.34815273]
[1731663927860,7.34815273,213.04,212.97,7.34815273]
[1731663928062,12.04215273,213.04,212.97,7.34815273]
[1731663929085,22.0531,213.05,212.99,7.34815273]
[1731663929265,7.34815273,213.06,212.99,7.34815273]
[1731663929465,16.7469,213.1,212.96,20.0]
[1731663929466,7.34815273,213.08,213.01,7.34815273]
[1731663929786,4.6928,213.09,213.02,7.34815273]
[1731663929966,12.04095273,213.09,213.02,7.34815273]
[1731663930166,4.6925,213.11,213.05,7.34815273]
[1731663930379,13.67277511,213.12,213.06,7.34815273]
[1731663930561,21.02092784,213.12,213.05,7.34815273]
[1731663931278,8.98057511,213.12,213.06,7.34815273]
[1731663931475,17.0479,213.17,213.1,7.34815273]
[1731663931476,21.7391,213.17,213.1,7.34815273]
[1731663931666,4.6912,213.17,213.11,7.34815273]
[1731663931868,7.34815273,213.16,213.09,7.34815273]
[1731663932068,7.34815273,213.13,213.06,19.08145273]
[1731663932284,7.34815273,213.11,213.05,17.1252]
[1731663932583,7.34815273,213.11,213.01,11.7365]
[1731663932584,7.34815273,213.09,213.02,32.04235273]
[1731663932789,4.6912,213.17,213.02,32.04235273]
[1731663932790,7.34815273,213.08,213.02,24.6942]
[1731663933112,7.34815273,213.11,213.04,27.34815273]
[1731663933406,23.776884,213.16,213.03,7.34815273]
[1731663933407,7.34815273,213.1,213.03,7.34815273]
[1731663933591,23.776884,213.16,212.99,18.3608]
[1731663933592,7.34815273,213.06,212.99,25.70895273]
[1731663933769,7.34815273,213.06,213.0,20.0]
[1731663934085,12.04155273,213.07,213.01,0.12549]
[1731663934398,12.04155273,213.07,213.0,27.34815273]
[1731663934697,7.34815273,213.06,213.0,20.0]
[1731663934886,7.34815273,213.06,213.0,0.12549]
[1731663936188,7.34815273,213.07,213.0,0.12549]
[1731663936596,7.34815273,213.07,213.0,12.16834273]
[1731663936897,4.6924,213.11,213.01,7.34815273]
[1731663937104,7.34815273,213.08,213.01,7.34815273]
[1731663938201,4.692,213.13,213.07,7.34815273]
[1731663938512,4.6911,213.17,213.11,7.34815273]
[1731663938799,4.6911,213.17,213.04,23.776884]
[1731663939002,4.6911,213.17,213.05,20.0]
[1731663939502,17.3178,213.18,213.05,20.0]
[1731663939503,4.6915,213.15,213.08,11.4511515]
[1731663940704,16.1423515,213.17,213.09,11.4511515]
[1731663941688,16.1423515,213.17,213.1,11.4511515]
[1731663941892,4.6912,213.17,213.11,11.4511515]
[1731663943714,11.4511515,213.16,213.09,16.1438515]
[1731663944779,16.1423515,213.17,213.11,11.4511515]
[1731663944995,16.1423515,213.17,213.1,11.4511515]
[1731663945624,16.1423515,213.17,213.09,11.4511515]
[1731663945625,11.4511515,213.16,213.09,11.4511515]
[1731663945908,11.4511515,213.11,213.04,16.1449515]
[1731663946089,11.4511515,213.1,213.03,11.4511515]
[1731663946294,11.4511515,213.09,213.02,30.4726515]
[1731663946598,11.4511515,213.12,213.06,11.4511515]
[1731663947611,11.4511515,213.12,213.05,4.6935]
[1731663947806,11.4511515,213.07,213.03,0.12549]
[1731663947999,11.4511515,213.07,213.02,11.7355]
[1731663948510,11.4511515,213.06,213.03,0.12549]
[1731663948885,11.4511515,213.05,212.99,4.6948]
[1731663949210,11.4511515,213.07,213.0,0.12549]
[1731663949412,11.4511515,213.07,213.0,36.2712415]
[1731663949712,11.4511515,213.1,213.03,11.4511515]
[1731663950512,11.4511515,213.11,213.04,11.4511515]
[1731663950687,11.4511515,213.1,213.03,11.4511515]
[1731663951305,11.4511515,213.05,213.0,11.86249]
[1731663951517,11.4511515,213.04,213.0,11.86249]
[1731663951885,11.4511515,213.05,213.0,11.86249]
[1731663952103,11.4511515,213.04,213.0,0.12549]
[1731663952309,11.4511515,213.03,213.0,0.12549]
[1731663952495,11.4511515,213.05,213.0,0.12549]
[1731663952697,11.4511515,213.06,213.0,4.82019]
[1731663953504,11.4511515,213.07,213.0,16.2713415]
[1731663953891,11.4511515,213.06,213.0,4.82019]
[1731663954516,11.4511515,213.05,213.0,0.12549]
[1731663954910,11.4511515,213.02,212.95,16.1468515]
[1731663955114,4.6934,213.07,212.95,16.1468515]
[1731663955115,11.4511515,213.03,212.96,11.4511515]
[1731663955613,4.6934,213.07,213.0,11.4511515]
[1731663955614,16.1445515,213.07,213.0,11.4511515]
[1731663956511,11.4511515,213.06,213.0,4.6946]
[1731663956895,11.4511515,213.04,212.99,11.7376]
[1731663957306,11.4511515,213.05,212.99,11.7376]
[1731663958605,11.4511515,213.05,212.99,16.4326]
[1731663959616,11.4511515,213.06,212.99,27.8837515]
[1731663959919,11.4511515,213.06,213.0,4.6947]
[1731663961026,11.4511515,213.05,213.0,4.6947]
[1731663963611,119.00351863,213.13,213.02,11.4511515]
[1731663963612,11.4511515,213.1,213.02,11.4511515]
[1731663963810,11.4511515,213.09,213.02,11.4511515]
[1731663964213,4.6921,213.12,213.07,11.4511515]
[1731663964599,11.4511515,213.15,213.08,11.4511515]
[1731663964800,7.33013597,213.15,213.08,7.33013597]
[1731663965199,7.33013597,213.15,213.04,20.0]
[1731663965524,43.01741554,213.19,213.04,20.0]
[1731663965525,7.33013597,213.14,213.07,7.33013597]
[1731663966025,7.33013597,213.08,213.02,4.6942]
[1731663966193,7.33013597,213.06,213.0,23.6697]
[1731663966394,70.0,213.16,213.01,7.33013597]
[1731663966600,7.33013597,213.08,213.01,7.33013597]
[1731663966901,11.45818786,213.08,213.01,11.45818786]
[1731663967208,11.45818786,213.07,213.0,35.12788786]
[1731663967408,11.45818786,213.06,213.0,23.6697]
[1731663967718,16.15178786,213.06,213.0,18.975]
[1731663967904,16.15178786,213.06,212.98,29.66038786]
[1731663967905,11.45818786,213.05,212.98,29.66038786]
[1731663968106,11.45818786,213.02,212.97,20.0]
[1731663968302,11.45818786,213.04,212.97,31.45818786]
[1731663968618,11.45818786,213.03,212.97,20.0]
[1731663968820,11.45818786,213.05,212.99,11.45818786]
[1731663969011,11.45818786,213.03,212.98,0.12549]
[1731663969520,11.45818786,213.0,212.93,33.18088786]
[1731663969706,11.45818786,213.01,212.94,11.58367786]
[1731663969909,11.45818786,213.02,212.95,11.45818786]
[1731663970112,11.45818786,213.03,212.96,11.45818786]
[1731663970925,11.45818786,213.03,212.96,16.15368786]
[1731663971296,16.15208786,213.04,212.97,11.45818786]
[1731663971499,16.15208786,213.04,212.96,16.15368786]
[1731663971500,11.45818786,213.03,212.96,16.15368786]
[1731663972306,28.469884,213.08,212.98,11.45818786]
[1731663972504,11.45818786,213.04,212.97,27.89228786]
[1731663972714,11.45818786,213.03,212.97,16.4341]
[1731663973429,11.45818786,213.03,212.97,11.7387]
[1731663973610,11.45818786,213.03,212.97,16.4341]
[1731663973815,16.15118786,213.08,213.01,11.45818786]
[1731663974436,11.45818786,213.07,213.0,11.45818786]
[1731663974801,11.45818786,213.09,213.02,11.45818786]
[1731663975016,4.6928,213.1,213.04,11.45818786]
[1731663975320,4.6928,213.1,212.97,11.8387]
[1731663975321,11.45818786,213.06,212.99,11.45818786]
[1731663975918,11.45818786,213.07,213.0,11.45818786]
[1731663976252,11.45818786,213.09,213.02,11.45818786]
[1731663976520,4.693,213.08,213.02,11.45818786]
[1731663977025,16.15088786,213.1,213.03,11.45818786]
[1731663977603,11.45818786,213.1,213.03,11.45818786]
[1731663977919,11.45818786,213.11,213.04,11.45818786]
[1731663978110,11.45818786,213.13,213.06,11.45818786]
[1731663978517,16.14958786,213.16,213.09,11.45818786]
[1731663978826,4.6914,213.16,213.09,11.45818786]
[1731663979012,11.45818786,213.15,213.08,11.45818786]
[1731663979414,11.45818786,213.14,213.07,23.19138786]
[1731663979932,11.45818786,213.11,213.06,20.0]
[1731663980103,11.45818786,213.12,213.06,20.0]
[1731663980312,4.6914,213.16,213.06,20.0]
[1731663980313,11.45818786,213.13,213.06,20.0]
[1731663981008,16.15028786,213.13,213.06,20.0]
[1731663981207,11.45818786,213.1,213.03,28.39328786]
[1731663981410,11.45818786,213.1,213.03,33.08738786]
[1731663982419,11.45818786,213.14,213.07,11.45818786]
[1731663982622,119.00351863,213.18,213.03,33.3646]
[1731663982623,11.45818786,213.11,213.03,44.82278786]
[1731663982921,11.45818786,213.09,213.03,33.3646]
[1731663983105,11.45818786,213.1,213.03,44.82278786]
[1731663983308,16.15058786,213.11,213.04,11.45818786]
[1731663984906,11.45818786,213.1,213.03,44.82278786]
[1731663985503,11.45818786,213.09,213.03,28.6705]
[1731663986031,11.45818786,213.1,213.03,40.12868786]
[1731663986328,11.45818786,213.11,213.04,11.45818786]
[1731663987327,11.45818786,213.06,212.99,11.45818786]
[1731663987506,11.45818786,213.06,213.0,4.6947]
[1731663990220,11.45818786,213.05,213.0,4.6947]
[1731663991104,11.45818786,213.05,212.98,45.66638786]
[1731663992035,11.45818786,213.06,212.99,11.45818786]
[1731663992234,11.45818786,213.04,212.99,4.6949]
[1731663992634,11.45818786,213.03,212.98,29.5131]
[1731663993027,11.45818786,213.03,212.98,16.4328]
[1731663993216,14.49271998,213.09,212.95,20.0]
[1731663993217,11.45818786,212.99,212.95,20.0]
[1731663993410,11.45818786,212.98,212.95,20.0]
[1731663993716,11.45818786,212.99,212.95,20.0]
[1731663994421,11.45818786,212.98,212.95,20.0]
[1731663995334,11.45818786,212.97,212.95,20.0]
[1731663995726,11.45818786,212.99,212.95,20.0]
[1731663995939,11.45818786,212.98,212.95,20.0]
[1731663996307,11.45818786,212.97,212.95,20.0]
[1731663997027,11.45818786,212.98,212.95,20.0]
[1731663997240,11.45818786,212.97,212.95,20.0]
[1731663998315,11.45818786,212.98,212.95,20.0]
[1731663998515,11.45818786,212.99,212.95,20.0]
[1731663999243,11.45818786,213.0,212.95,20.0]
[1731663999530,11.45818786,213.02,212.96,11.58367786]
[1731663999714,16.15258786,213.02,212.96,0.12549]
[1731663999915,11.45818786,212.98,212.95,20.0]
[1731664000116,11.45818786,212.97,212.95,20.0]
[1731664000431,11.45818786,212.96,212.95,20.0]
[1731664000937,11.45818786,212.99,212.95,20.0]
[1731664001238,4.6944,213.02,212.95,20.0]
[1731664001239,11.45818786,213.0,212.95,20.0]
[1731664001534,11.45818786,212.99,212.95,20.0]
[1731664002308,11.45818786,212.98,212.95,20.0]
[1731664002826,7.34199429,212.98,212.95,20.0]
[1731664003126,7.34199429,212.97,212.95,20.0]
[1731664004415,7.34199429,212.96,212.95,20.0]
[1731664006137,31.11887829,212.96,212.95,20.0]
[1731664006430,35.81457829,212.96,212.95,20.0]
[1731664009327,4.6954,212.98,212.95,20.0]
[1731664009519,7.34199429,213.0,212.95,20.0]
[1731664010324,7.34199429,212.99,212.95,20.0]
[1731664010637,12.03719429,212.99,212.95,20.0]
[1731664010832,16.16563399,212.99,212.95,20.0]
[1731664011036,4.6952,212.99,212.95,20.0]
[1731664011640,11.47043399,213.0,212.95,20.0]
[1731664012227,16.16473399,213.02,212.95,31.47043399]
[1731664012536,4.6943,213.02,212.96,11.47043399]
[1731664013229,11.47043399,213.0,212.95,20.0]
[1731664014537,11.47043399,213.01,212.95,20.0]
[1731664014718,11.47043399,213.03,212.96,11.59592399]
[1731664014923,16.16433399,213.04,212.97,11.47043399]
[1731664015124,11.47043399,213.03,212.96,11.59592399]
[1731664015318,4.6939,213.04,212.95,36.4355]
[1731664015319,11.47043399,213.0,212.95,20.0]
[1731664016446,11.47043399,212.97,212.95,20.0]
[1731664016648,11.47043399,212.96,212.95,20.0]
[1731664017346,39.94301799,212.96,212.95,20.0]
[1731664018929,39.94301799,212.96,212.95,19.235]
[1731664019844,4.6953,212.98,212.95,19.235]
[1731664020252,16.16573399,212.98,212.95,19.235]
[1731664020429,48.67461331,213.05,212.95,19.235]
[1731664020430,11.47043399,213.01,212.95,19.235]
[1731664020744,11.47043399,213.0,212.95,19.235]
[1731664020918,11.47043399,212.99,212.95,19.235]
[1731664021738,11.47043399,213.04,212.97,11.47043399]
[1731664021940,16.16353399,213.08,213.01,11.47043399]
[1731664022241,11.47043399,213.11,213.04,11.47043399]
[1731664023152,16.16293399,213.11,213.04,11.47043399]
[1731664023851,16.16243399,213.13,213.06,11.47043399]
[1731664024030,11.47043399,213.12,213.05,11.47043399]
[1731664024439,7.34425943,213.15,213.08,11.47043399]
[1731664024751,4.6914,213.16,213.09,11.47043399]
[1731664024937,11.47043399,213.14,213.06,18.83543399]
[1731664025549,11.47043399,213.11,213.06,7.365]
[1731664025732,11.47043399,213.08,213.01,18.83543399]
[1731664026053,4.6917,213.14,213.01,12.0595]
[1731664026054,11.47043399,213.07,213.01,12.0595]
[1731664026547,11.47043399,213.09,213.02,11.47043399]
[1731664027629,11.47043399,213.07,213.01,19.1015]
[1731664027936,11.47043399,213.07,213.01,23.7961]
[1731664028735,11.47043399,213.06,213.01,23.7961]
[1731664029328,11.47043399,213.04,212.96,30.42583399]
[1731664029533,11.47043399,213.02,212.96,18.9554]
[1731664030429,11.47043399,213.02,212.96,23.6511]
[1731664030953,17.9199,213.11,212.96,23.6511]
[1731664030954,11.47043399,213.03,212.96,35.12153399]
[1731664031339,11.47043399,213.06,212.99,11.47043399]
[1731664031663,11.47043399,213.07,213.0,11.47043399]
[1731664032144,11.47043399,213.03,212.96,35.12153399]
[1731664033048,11.47043399,213.02,212.96,23.6511]
[1731664033230,17.9199,213.11,212.96,23.6511]
[1731664033231,11.47043399,212.99,212.96,7.2163]
[1731664033433,11.47043399,212.98,212.95,19.235]
[1731664034156,11.47043399,213.0,212.95,19.235]
[1731664034449,30.0,212.97,212.95,47.14103399]
[1731664034951,30.0,212.97,212.96,11.47043399]
[1731664035331,11.47043399,212.97,212.95,19.235]
[1731664035530,23.776884,212.95,212.81,4.6989]
[1731664035731,23.776884,212.95,212.79,14.14756084]
[1731664035933,0.12549,212.94,212.8,11.47043399]
[1731664036144,0.12549,212.94,212.81,11.47043399]
[1731664036347,31.12992334,212.96,212.82,11.47043399]
[1731664036545,11.47043399,212.92,212.85,11.47043399]
[1731664036848,23.776884,212.92,212.87,11.47043399]
[1731664037045,23.776884,212.92,212.86,11.47043399]
[1731664037229,23.776884,212.92,212.8,16.4473]
[1731664037230,35.24731799,212.92,212.85,11.47043399]
[1731664037428,11.47043399,212.91,212.84,11.47043399]
[1731664037631,35.24731799,212.92,212.85,11.47043399]
[1731664038251,11.47043399,212.91,212.82,4.6988]
[1731664038450,11.47043399,212.91,212.84,11.47043399]
[1731664038860,16.16663399,212.94,212.87,11.47043399]
[1731664039060,7.35303934,212.96,212.82,16.4458]
[1731664039061,11.47043399,212.95,212.88,11.47043399]
[1731664039355,11.47043399,212.94,212.87,11.47043399]
[1731664040361,35.24731799,212.95,212.88,11.47043399]
[1731664040549,0.12549,212.98,212.91,11.47043399]
[1731664040550,23.776884,212.96,212.91,11.47043399]
[1731664040743,23.776884,212.96,212.9,11.47043399]
[1731664040966,23.776884,212.96,212.87,16.4417]
[1731664040967,4.6956,212.97,212.92,11.47043399]
[1731664041149,23.776884,212.98,212.92,11.47043399]
[1731664042354,23.776884,212.94,212.88,11.47043399]
[1731664042559,35.24731799,212.92,212.84,11.47043399]
[1731664042763,35.24731799,212.91,212.83,11.47043399]
[1731664042937,0.12549,212.93,212.83,11.47043399]
[1731664043137,0.12549,212.93,212.81,11.47043399]
[1731664044243,0.12549,212.94,212.82,11.47043399]
[1731664044539,23.776884,212.92,212.8,4.6992]
[1731664044952,11.47043399,212.91,212.84,11.47043399]
[1731664045345,11.47043399,212.92,212.85,11.47043399]
[1731664045549,11.47043399,212.92,212.84,11.47043399]
[1731664045740,11.47043399,212.91,212.84,11.47043399]
[1731664046172,16.16713399,212.92,212.86,11.47043399]
[1731664046348,119.00351863,212.96,212.8,60.224184]
[1731664046349,4.6962,212.94,212.88,11.47043399]
[1731664050861,16.16663399,212.94,212.87,11.47043399]
[1731664052470,4.6962,212.94,212.88,11.47043399]
[1731664052972,16.16623399,212.96,212.89,11.47043399]
[1731664054372,11.47043399,212.95,212.88,11.47043399]
[1731664055647,11.47043399,212.95,212.86,11.47043399]
[1731664055648,11.47043399,212.93,212.86,11.47043399]
[1731664055852,0.12549,212.95,212.78,40.8844]
[1731664055853,0.12549,212.91,212.79,18.8914]
[1731664056071,27.65942781,212.9,212.79,23.5908]
[1731664056267,39.1298618,212.9,212.82,11.47043399]
[1731664056477,11.47043399,212.89,212.82,11.47043399]
[1731664056974,39.1298618,212.9,212.82,11.47043399]
[1731664057348,39.1298618,212.9,212.83,11.47043399]
[1731664057767,11.47043399,212.89,212.82,11.47043399]
[1731664058158,4.6974,212.88,212.82,11.47043399]
[1731664060576,4.6974,212.88,212.83,11.47043399]
[1731664061873,27.65952781,212.9,212.86,11.47043399]
[1731664062370,22.96242781,212.9,212.86,11.47043399]
[1731664062577,22.96242781,212.9,212.87,11.47043399]
[1731664062779,27.65942781,212.9,212.86,11.47043399]
[1731664063962,27.65942781,212.9,212.83,11.47043399]
[1731664064165,39.1298618,212.9,212.83,11.47043399]
[1731664064861,11.47043399,212.87,212.8,4.6991]
[1731664065175,11.59592399,212.89,212.82,11.47043399]
[1731664065378,11.47043399,212.85,212.78,16.4486]
[1731664065552,11.47043399,212.85,212.78,11.47043399]
[1731664065757,11.47043399,212.86,212.79,11.47043399]
[1731664066065,4.6981,212.85,212.79,11.47043399]
[1731664066264,4.6981,212.85,212.76,4.7001]
[1731664066265,4.6981,212.85,212.8,11.47043399]
[1731664066462,4.6981,212.85,212.79,11.47043399]
[1731664066668,11.47043399,212.82,212.75,11.47043399]
[1731664068058,4.699,212.81,212.75,11.47043399]
[1731664068256,11.47043399,212.78,212.74,0.456577]
[1731664068454,11.47043399,212.77,212.74,0.456577]
[1731664068659,4.699,212.81,212.6,7.24817668]
[1731664068660,39.39853399,212.75,212.6,7.24817668]
[1731664068855,39.39853399,212.75,212.54,4.7049]
[1731664068856,11.47043399,212.67,212.54,4.7049]
[1731664069064,11.47043399,212.68,212.61,11.47043399]
[1731664069279,11.47043399,212.68,212.6,11.47043399]
[1731664069477,11.47043399,212.69,212.62,11.47043399]
[1731664070480,11.47043399,212.7,212.63,11.47043399]
[1731664070779,11.47043399,212.69,212.61,11.47043399]
[1731664070980,11.47043399,212.68,212.61,11.47043399]
[1731664071475,11.47043399,212.7,212.63,11.47043399]
[1731664071686,16.17153399,212.72,212.65,11.47043399]
[1731664072057,16.17153399,212.72,212.66,11.47043399]
[1731664072360,16.17153399,212.72,212.65,11.47043399]
[1731664073570,11.47043399,212.7,212.64,11.47043399]
[1731664073977,11.47043399,212.71,212.64,11.47043399]
[1731664074186,11.47043399,212.7,212.64,11.47043399]
[1731664075467,11.47043399,212.71,212.64,11.47043399]
[1731664076368,11.47043399,212.7,212.64,11.47043399]
[1731664076872,11.47043399,212.7,212.63,11.47043399]
[1731664078166,11.47043399,212.69,212.62,11.47043399]
[1731664078371,11.47043399,212.66,212.59,11.47043399]
[1731664078871,11.47043399,212.66,212.6,11.47043399]
[1731664080288,11.47043399,212.65,212.58,16.17433399]
[1731664080697,11.47043399,212.65,212.58,11.47043399]
[1731664081079,16.17283399,212.66,212.59,11.47043399]
[1731664081961,16.17283399,212.66,212.56,11.7613]
[1731664082163,11.47043399,212.65,212.59,11.47043399]
[1731664082363,11.47043399,212.64,212.57,11.47043399]
[1731664082577,11.47043399,212.63,212.57,11.47043399]
[1731664082984,11.47043399,212.64,212.57,11.47043399]
[1731664083376,11.47043399,212.64,212.58,11.47043399]
[1731664084073,11.47043399,212.65,212.58,11.47043399]
[1731664084291,4.7016,212.69,212.62,11.47043399]
[1731664084607,4.7016,212.69,212.64,11.47043399]
[1731664084807,30.0,212.65,212.63,11.47043399]
[1731664085094,4.7016,212.69,212.62,11.47043399]
[1731664085095,16.17203399,212.69,212.62,11.47043399]
[1731664085272,11.47043399,212.68,212.62,11.47043399]
[1731664085477,11.47043399,212.67,212.6,11.47043399]
[1731664085677,11.47043399,212.68,212.62,11.47043399]
[1731664085973,11.47043399,212.69,212.63,11.47043399]
[1731664086382,11.47043399,212.69,212.62,11.47043399]
[1731664086776,11.47043399,212.68,212.61,11.47043399]
[1731664087080,16.17223399,212.68,212.61,11.47043399]
[1731664087263,18.80443535,212.7,212.63,11.47043399]
[1731664087472,7.33400136,212.7,212.64,11.47043399]
[1731664088168,18.80443535,212.7,212.64,11.47043399]
[1731664088366,12.03560136,212.7,212.64,11.47043399]
[1731664088768,12.03560136,212.7,212.66,11.47043399]
[1731664088993,12.03560136,212.7,212.69,11.47043399]
[1731664088994,7.33400136,212.7,212.69,11.47043399]
[1731664089488,7.33400136,212.7,212.67,11.47043399]
[1731664089666,11.47043399,212.69,212.63,11.47043399]
[1731664089869,23.50593535,212.7,212.63,11.47043399]
[1731664090174,23.50593535,212.7,212.59,48.753984]
[1731664090175,12.03550136,212.7,212.6,20.0]
[1731664090379,7.33400136,212.7,212.61,16.462]
[1731664090579,7.33400136,212.7,212.68,11.47043399]
[1731664092986,7.33400136,212.7,212.69,11.47043399]
[1731664093195,4.7008,212.73,212.69,11.47043399]
[1731664093374,7.3338566,212.72,212.68,11.47043399]
[1731664094394,7.3338566,212.72,212.7,11.47043399]
[1731664095488,7.3338566,212.72,212.71,11.47043399]
[1731664096377,7.3338566,212.72,212.71,16.17163399]
[1731664096695,7.3338566,212.72,212.71,11.47043399]
[1731664096888,7.3338566,212.72,212.7,11.47043399]
[1731664097489,7.3338566,212.72,212.71,11.47043399]
[1731664097692,12.0348566,212.72,212.69,11.47043399]
[1731664097995,4.701,212.72,212.67,11.47043399]
[1731664098494,11.47043399,212.71,212.65,11.47043399]
[1731664098679,4.701,212.72,212.67,11.47043399]
[1731664099689,16.17143399,212.72,212.65,11.47043399]
[1731664101281,16.17143399,212.72,212.64,16.4596]
[1731664101495,11.47043399,212.69,212.62,11.47043399]
[1731664101671,11.47043399,212.7,212.63,11.47043399]
[1731664102179,11.47043399,212.7,212.58,23.5201]
[1731664102180,11.47043399,212.65,212.58,11.47043399]
[1731664102382,11.47043399,212.66,212.59,11.47043399]
[1731664102706,16.17283399,212.66,212.59,11.47043399]
[1731664102875,4.7024,212.66,212.6,11.47043399]
[1731664104375,11.47043399,212.65,212.57,11.47043399]
[1731664104574,11.47043399,212.63,212.56,11.47043399]
[1731664104782,11.47043399,212.61,212.55,11.7614]
[1731664104984,11.47043399,212.62,212.55,11.7614]
[1731664105389,11.47043399,212.62,212.55,23.23183399]
[1731664105703,11.47043399,212.62,212.54,11.47043399]
[1731664106005,0.12549,212.65,212.53,0.456577]
[1731664106006,11.47043399,212.63,212.55,11.47043399]
[1731664106172,11.47043399,212.59,212.53,0.456577]
[1731664106496,4.7038,212.59,212.53,11.92701099]
[1731664106985,4.7035,212.61,212.54,11.47043399]
[1731664107187,16.17393399,212.61,212.54,11.47043399]
[1731664107895,11.47043399,212.6,212.53,11.92701099]
[1731664108487,4.7038,212.59,212.53,0.456577]
[1731664108694,4.7038,212.59,212.53,11.92701099]
[1731664109293,4.7038,212.59,212.53,0.456577]
[1731664109294,11.47043399,212.58,212.53,0.456577]
[1731664109607,4.7038,212.59,212.53,11.92701099]
[1731664110080,16.17423399,212.59,212.53,0.456577]
[1731664110607,4.7038,212.59,212.53,11.92701099]
[1731664110816,4.7038,212.59,212.54,11.47043399]
[1731664111017,4.7038,212.59,212.53,11.92701099]
[1731664112108,4.7038,212.59,212.54,11.47043399]
[1731664112996,12.00298562,212.61,212.57,11.47043399]
[1731664113514,4.7031,212.63,212.58,11.47043399]
[1731664113807,7.30842607,212.64,212.6,11.47043399]
[1731664113995,7.30842607,212.64,212.54,23.776884]
[1731664113996,7.30842607,212.64,212.58,11.47043399]
[1731664114802,4.703,212.63,212.57,11.47043399]
[1731664116202,16.17343399,212.63,212.56,11.47043399]
[1731664116407,4.703,212.63,212.57,11.47043399]
[1731664117012,16.17343399,212.63,212.56,11.47043399]
[1731664117810,4.703,212.63,212.57,11.47043399]
[1731664118311,4.703,212.63,212.53,16.924677]
[1731664118312,11.47043399,212.61,212.54,11.47043399]
[1731664119299,30.0,212.6,212.55,11.47043399]
[1731664119797,30.0,212.6,212.56,11.47043399]
[1731664120094,30.0,212.6,212.57,11.47043399]
[1731664120401,18.77886006,212.64,212.57,11.47043399]
[1731664120610,4.7032,212.63,212.58,11.47043399]
[1731664121109,18.77886006,212.64,212.58,11.47043399]
[1731664121314,4.7028,212.64,212.59,11.47043399]
[1731664121913,4.7028,212.64,212.58,11.47043399]
[1731664122392,16.17323399,212.64,212.57,11.47043399]
[1731664122717,4.7028,212.64,212.58,11.47043399]